[Event "*** Titled Tuesday Blitz"]
[Site "Chess.com"]
[Date "2020.01.07"]
[Round "5"]
[White "NikolaMa2000"]
[Black "Proteuo"]
[Result "0-1"]
[WhiteElo "2034"]
[BlackElo "2317"]
[TimeControl "180+2"]
[EndTime "14:09:40 PST"]
[Termination "Proteuo won on time"]

1. d4 {[%clk 0:03:01.9]} 1... Nf6 {[%clk 0:02:59.9]} 2. c4 {[%clk 0:03:03]} 2...
e6 {[%clk 0:03:00.3]} 3. g3 {[%clk 0:02:59.3]} 3... d5 {[%clk 0:03:00.2]} 4. Bg2
{[%clk 0:02:59.8]} 4... Be7 {[%clk 0:03:00.4]} 5. Nf3 {[%clk 0:03:00]} 5... O-O
{[%clk 0:03:00.8]} 6. O-O {[%clk 0:03:01]} 6... b6 {[%clk 0:02:57.6]} 7. b3
{[%clk 0:03:00.2]} 7... Bb7 {[%clk 0:02:57.5]} 8. Bb2 {[%clk 0:02:58.1]} 8...
Nbd7 {[%clk 0:02:58]} 9. Nc3 {[%clk 0:02:58]} 9... c5 {[%clk 0:02:56.6]} 10.
cxd5 {[%clk 0:02:57.3]} 10... Nxd5 {[%clk 0:02:57]} 11. Nb5 {[%clk 0:02:34.5]}
11... a6 {[%clk 0:02:54.1]} 12. Na3 {[%clk 0:02:33.5]} 12... Rc8 {[%clk
0:02:51.9]} 13. Nc4 {[%clk 0:02:31.2]} 13... b5 {[%clk 0:02:51.1]} 14. Nce5
{[%clk 0:02:28.3]} 14... Nxe5 {[%clk 0:02:47.8]} 15. Nxe5 {[%clk 0:02:23.3]}
15... c4 {[%clk 0:02:46.9]} 16. e4 {[%clk 0:02:22.4]} 16... Nb6 {[%clk
0:02:37.6]} 17. Rc1 {[%clk 0:02:10.7]} 17... f6 {[%clk 0:02:35]} 18. Ng4 {[%clk
0:02:04.8]} 18... Qd7 {[%clk 0:02:18.3]} 19. Qe2 {[%clk 0:01:58.6]} 19... Rfd8
{[%clk 0:02:13.2]} 20. Rfd1 {[%clk 0:01:59.5]} 20... Bf8 {[%clk 0:01:50]} 21.
Ne3 {[%clk 0:01:53.6]} 21... cxb3 {[%clk 0:01:25.3]} 22. axb3 {[%clk 0:01:43.7]}
22... f5 {[%clk 0:01:25]} 23. d5 {[%clk 0:01:07.2]} 23... fxe4 {[%clk
0:01:13.4]} 24. dxe6 {[%clk 0:00:58.2]} 24... Qxe6 {[%clk 0:01:08.2]} 25. Rxd8
{[%clk 0:00:53]} 25... Rxd8 {[%clk 0:01:10.1]} 26. Rc7 {[%clk 0:00:41.8]} 26...
Rd7 {[%clk 0:00:54.8]} 27. Qc2 {[%clk 0:00:19.8]} 27... Rxc7 {[%clk 0:00:44.5]}
28. Qxc7 {[%clk 0:00:21.7]} 28... Qc6 {[%clk 0:00:42.8]} 29. Qe5 {[%clk
0:00:19.6]} 29... Nd7 {[%clk 0:00:34.6]} 30. Qg5 {[%clk 0:00:15.4]} 30... h6
{[%clk 0:00:32.6]} 31. Qg4 {[%clk 0:00:15.6]} 31... Nf6 {[%clk 0:00:29.6]} 32.
Qf5 {[%clk 0:00:13.9]} 32... Bc8 {[%clk 0:00:28.2]} 33. Qe5 {[%clk 0:00:14.4]}
33... Bd6 {[%clk 0:00:26.8]} 34. Qd4 {[%clk 0:00:14.3]} 34... Bc5 {[%clk
0:00:23.2]} 35. Qe5 {[%clk 0:00:14.8]} 35... Bxe3 {[%clk 0:00:21.5]} 36. fxe3
{[%clk 0:00:16]} 36... Qc2 {[%clk 0:00:19.8]} 37. Bxe4 {[%clk 0:00:10]} 37...
Qxe4 {[%clk 0:00:19.3]} 38. Qc7 {[%clk 0:00:06.4]} 38... Qxe3+ {[%clk
0:00:19.7]} 39. Kg2 {[%clk 0:00:06.9]} 39... Qe2+ {[%clk 0:00:19.8]} 40. Kg1
{[%clk 0:00:04.7]} 40... Bh3 {[%clk 0:00:20.4]} 41. Qd8+ {[%clk 0:00:04.4]}
41... Kh7 {[%clk 0:00:20.2]} 0-1

[Event "*** Titled Tuesday Blitz"]
[Site "Chess.com"]
[Date "2020.01.07"]
[Round "5"]
[White "SlavenPastar"]
[Black "StephenDedalus83"]
[Result "0-1"]
[WhiteElo "2522"]
[BlackElo "2710"]
[TimeControl "180+2"]
[EndTime "14:09:41 PST"]
[Termination "StephenDedalus83 won by resignation"]

1. d4 {[%clk 0:02:56.9]} 1... g6 {[%clk 0:02:59.5]} 2. c4 {[%clk 0:02:58.5]}
2... Bg7 {[%clk 0:03:00.5]} 3. Nc3 {[%clk 0:03:00.1]} 3... d6 {[%clk 0:03:01.1]}
4. Nf3 {[%clk 0:02:59.9]} 4... Bg4 {[%clk 0:03:00.9]} 5. h3 {[%clk 0:02:50.6]}
5... Bxf3 {[%clk 0:03:00.5]} 6. exf3 {[%clk 0:02:51.8]} 6... Nc6 {[%clk
0:02:59.5]} 7. Be3 {[%clk 0:02:51.6]} 7... Nf6 {[%clk 0:02:58.2]} 8. Be2 {[%clk
0:02:51.6]} 8... O-O {[%clk 0:02:58.6]} 9. O-O {[%clk 0:02:53.1]} 9... e5 {[%clk
0:02:39]} 10. d5 {[%clk 0:02:53.6]} 10... Ne7 {[%clk 0:02:38.1]} 11. Rc1 {[%clk
0:02:45.7]} 11... Nd7 {[%clk 0:02:38.5]} 12. b4 {[%clk 0:02:43.1]} 12... a5
{[%clk 0:02:37.9]} 13. a3 {[%clk 0:02:43.8]} 13... axb4 {[%clk 0:02:38.8]} 14.
axb4 {[%clk 0:02:45.7]} 14... Nf5 {[%clk 0:02:39.7]} 15. Bd3 {[%clk 0:02:23.9]}
15... Nxe3 {[%clk 0:02:34]} 16. fxe3 {[%clk 0:02:22.3]} 16... Bh6 {[%clk
0:02:35.6]} 17. Qe2 {[%clk 0:02:14.4]} 17... f5 {[%clk 0:02:31]} 18. Ra1 {[%clk
0:02:07]} 18... Qg5 {[%clk 0:02:31.3]} 19. f4 {[%clk 0:02:04.3]} 19... Qf6
{[%clk 0:02:31.3]} 20. Nb5 {[%clk 0:01:39.4]} 20... Rxa1 {[%clk 0:02:29.3]} 21.
Rxa1 {[%clk 0:01:36.8]} 21... e4 {[%clk 0:02:30.8]} 22. Ra7 {[%clk 0:01:29.7]}
22... exd3 {[%clk 0:02:30]} 23. Qxd3 {[%clk 0:01:31.6]} 23... Qb2 {[%clk
0:02:13.2]} 24. Rxb7 {[%clk 0:00:58.2]} 24... Qxb4 {[%clk 0:02:12.7]} 25. Rxc7
{[%clk 0:00:59.2]} 25... Nf6 {[%clk 0:02:13.6]} 26. Qd4 {[%clk 0:00:39.4]} 26...
Bg7 {[%clk 0:02:13.6]} 27. Qa7 {[%clk 0:00:37.1]} 27... Ne8 {[%clk 0:01:56.1]}
28. Rc6 {[%clk 0:00:31.5]} 28... Bf6 {[%clk 0:01:46.8]} 29. Qd7 {[%clk
0:00:26.9]} 29... Qe1+ {[%clk 0:01:46]} 30. Kh2 {[%clk 0:00:27.3]} 30... Qxe3
{[%clk 0:01:47.6]} 31. Qe6+ {[%clk 0:00:24.2]} 31... Qxe6 {[%clk 0:01:47.5]} 32.
dxe6 {[%clk 0:00:26.1]} 32... Be7 {[%clk 0:01:46.2]} 33. Ra6 {[%clk 0:00:17.6]}
33... Kg7 {[%clk 0:01:44.9]} 34. Ra7 {[%clk 0:00:12]} 34... Kf6 {[%clk
0:01:45.6]} 35. Nd4 {[%clk 0:00:13.1]} 35... Ng7 {[%clk 0:01:46.3]} 36. Nc6
{[%clk 0:00:11]} 36... Re8 {[%clk 0:01:46.3]} 37. g4 {[%clk 0:00:06.3]} 37...
Nxe6 {[%clk 0:01:46.9]} 38. g5+ {[%clk 0:00:06.5]} 38... Kf7 {[%clk 0:01:47.8]}
39. Kg3 {[%clk 0:00:04.7]} 39... Nc5 {[%clk 0:01:46.9]} 40. Rc7 {[%clk
0:00:03.2]} 40... Kf8 {[%clk 0:01:40.6]} 41. Kf3 {[%clk 0:00:03.9]} 41... Ne6
{[%clk 0:01:40]} 42. Ra7 {[%clk 0:00:04.7]} 42... Nd8 {[%clk 0:01:38.4]} 43. Nd4
{[%clk 0:00:03.3]} 43... Kf7 {[%clk 0:01:38]} 44. Nb5 {[%clk 0:00:04]} 44... Kg8
{[%clk 0:01:27.6]} 45. h4 {[%clk 0:00:04]} 45... Ne6 {[%clk 0:01:24.8]} 46. Rd7
{[%clk 0:00:02.7]} 46... Bf8 {[%clk 0:01:24.4]} 47. Nxd6 {[%clk 0:00:03.2]}
47... Nd4+ {[%clk 0:01:24.5]} 48. Kf2 {[%clk 0:00:02.6]} 48... Re2+ {[%clk
0:01:25.1]} 49. Kf1 {[%clk 0:00:03.6]} 49... Bxd6 {[%clk 0:01:25.7]} 50. Rxd6
{[%clk 0:00:05.5]} 50... Re4 {[%clk 0:01:26.7]} 51. c5 {[%clk 0:00:06.1]} 51...
Rxf4+ {[%clk 0:01:27.6]} 52. Kg2 {[%clk 0:00:07.7]} 52... Rxh4 {[%clk
0:01:28.1]} 53. c6 {[%clk 0:00:07.5]} 53... Nxc6 {[%clk 0:01:27.7]} 54. Rxc6
{[%clk 0:00:08.3]} 54... Rg4+ {[%clk 0:01:29.2]} 55. Kf3 {[%clk 0:00:09.5]}
55... Rxg5 {[%clk 0:01:31.1]} 56. Kf4 {[%clk 0:00:10]} 56... Rg4+ {[%clk
0:01:31]} 57. Ke5 {[%clk 0:00:11.6]} 57... Re4+ {[%clk 0:01:31.8]} 58. Kf6
{[%clk 0:00:12.3]} 58... Re8 {[%clk 0:01:32.7]} 59. Rc7 {[%clk 0:00:11]} 59...
Rf8+ {[%clk 0:01:33.6]} 60. Kg5 {[%clk 0:00:12.6]} 60... Rf7 {[%clk 0:01:31.5]}
61. Rc8+ {[%clk 0:00:11.1]} 61... Kg7 {[%clk 0:01:32.3]} 0-1

[Event "*** Titled Tuesday Blitz"]
[Site "Chess.com"]
[Date "2020.01.07"]
[Round "5"]
[White "francyIM"]
[Black "AntonSmirnov"]
[Result "1-0"]
[WhiteElo "2619"]
[BlackElo "2855"]
[TimeControl "180+2"]
[EndTime "14:09:44 PST"]
[Termination "francyIM won by resignation"]

1. d4 {[%clk 0:03:01.9]} 1... d5 {[%clk 0:02:59.7]} 2. c4 {[%clk 0:03:02.2]}
2... c6 {[%clk 0:03:00.4]} 3. Nf3 {[%clk 0:03:02.1]} 3... Nf6 {[%clk 0:03:01.5]}
4. Nc3 {[%clk 0:03:01.1]} 4... dxc4 {[%clk 0:03:00.2]} 5. a4 {[%clk 0:03:01.1]}
5... Bf5 {[%clk 0:03:01.1]} 6. Ne5 {[%clk 0:03:01.8]} 6... e6 {[%clk 0:03:01.5]}
7. Nxc4 {[%clk 0:03:01]} 7... Bb4 {[%clk 0:03:01.8]} 8. f3 {[%clk 0:03:00.9]}
8... O-O {[%clk 0:02:59.2]} 9. Bg5 {[%clk 0:02:53]} 9... c5 {[%clk 0:02:54.7]}
10. dxc5 {[%clk 0:02:48.2]} 10... Qxd1+ {[%clk 0:02:55.4]} 11. Rxd1 {[%clk
0:02:50.1]} 11... Bc2 {[%clk 0:02:56.1]} 12. Rd2 {[%clk 0:02:49]} 12... Bxc3
{[%clk 0:02:55.5]} 13. bxc3 {[%clk 0:02:48.7]} 13... Bxa4 {[%clk 0:02:56.5]} 14.
e4 {[%clk 0:02:47.2]} 14... h6 {[%clk 0:02:52.5]} 15. Be3 {[%clk 0:02:47.7]}
15... Bc6 {[%clk 0:02:49]} 16. Be2 {[%clk 0:02:39.8]} 16... Nbd7 {[%clk
0:02:45.2]} 17. Na5 {[%clk 0:02:37.6]} 17... Rfc8 {[%clk 0:02:38.9]} 18. O-O
{[%clk 0:02:37.5]} 18... Ne5 {[%clk 0:02:32.5]} 19. Bd4 {[%clk 0:02:33.2]} 19...
Ng6 {[%clk 0:02:31]} 20. Nc4 {[%clk 0:02:26.5]} 20... Nf4 {[%clk 0:02:29.4]} 21.
Nd6 {[%clk 0:02:26.5]} 21... Nxe2+ {[%clk 0:02:29.2]} 22. Rxe2 {[%clk
0:02:28.4]} 22... Rc7 {[%clk 0:02:30.2]} 23. h4 {[%clk 0:02:25.9]} 23... Ne8
{[%clk 0:02:28]} 24. Rd2 {[%clk 0:02:23.9]} 24... Rd7 {[%clk 0:02:25.1]} 25. e5
{[%clk 0:02:22.6]} 25... Nxd6 {[%clk 0:02:09.8]} 26. cxd6 {[%clk 0:02:21]} 26...
a5 {[%clk 0:02:11.1]} 27. c4 {[%clk 0:02:20.5]} 27... a4 {[%clk 0:02:12]} 28.
Ra1 {[%clk 0:02:20.9]} 28... Rf8 {[%clk 0:02:05.6]} 29. f4 {[%clk 0:02:15.8]}
29... h5 {[%clk 0:02:05]} 30. c5 {[%clk 0:02:09.6]} 30... f6 {[%clk 0:01:57.7]}
31. g3 {[%clk 0:02:08.4]} 31... Kf7 {[%clk 0:01:58.2]} 32. Ra3 {[%clk
0:02:07.5]} 32... Kg6 {[%clk 0:01:57.6]} 33. Kf2 {[%clk 0:02:08.2]} 33... Kf5
{[%clk 0:01:58.6]} 34. Re2 {[%clk 0:02:03]} 34... Ra8 {[%clk 0:01:57.8]} 35. Bc3
{[%clk 0:01:59.3]} 35... Rdd8 {[%clk 0:01:53.2]} 36. Bd4 {[%clk 0:01:59.1]}
36... Ra5 {[%clk 0:01:52.9]} 37. Rb2 {[%clk 0:01:57.5]} 37... Rb5 {[%clk
0:01:42.6]} 38. Rxb5 {[%clk 0:01:57.5]} 38... Bxb5 {[%clk 0:01:44.5]} 39. Ke3
{[%clk 0:01:57.7]} 39... Bc6 {[%clk 0:01:45.3]} 40. Kd2 {[%clk 0:01:58]} 40...
Ra8 {[%clk 0:01:40.1]} 41. Kc3 {[%clk 0:01:58.7]} 41... Ra5 {[%clk 0:01:39.3]}
42. Kc4 {[%clk 0:01:57.1]} 42... Ra8 {[%clk 0:01:35.7]} 43. Kb4 {[%clk
0:01:53.1]} 43... Ke4 {[%clk 0:01:30.9]} 44. Bb2 {[%clk 0:01:53]} 44... Kf5
{[%clk 0:01:26.6]} 45. Re3 {[%clk 0:01:50.9]} 45... Bd7 {[%clk 0:01:26.2]} 46.
Ba1 {[%clk 0:01:44]} 46... Bc6 {[%clk 0:01:25]} 47. Rd3 {[%clk 0:01:30.8]} 47...
Bd7 {[%clk 0:01:23.5]} 48. Bb2 {[%clk 0:01:20]} 48... Ke4 {[%clk 0:01:22.1]} 49.
Rd1 {[%clk 0:01:15.4]} 49... f5 {[%clk 0:01:19.2]} 50. Rd4+ {[%clk 0:01:12.9]}
50... Ke3 {[%clk 0:01:20.1]} 51. Rc4 {[%clk 0:01:13.9]} 51... Bc6 {[%clk
0:01:18.6]} 52. Rc3+ {[%clk 0:01:15]} 52... Kd2 {[%clk 0:01:18.8]} 53. Bc1+
{[%clk 0:01:15.4]} 53... Kd1 {[%clk 0:01:18.3]} 54. Kc4 {[%clk 0:01:15.2]} 54...
Ra5 {[%clk 0:01:13.1]} 55. Ba3 {[%clk 0:01:15.7]} 55... Ke2 {[%clk 0:01:08.6]}
56. Bb4 {[%clk 0:01:09.9]} 56... Bd5+ {[%clk 0:01:00.3]} 57. Kd4 {[%clk
0:01:10.8]} 57... Rb5 {[%clk 0:01:01.5]} 58. Re3+ {[%clk 0:01:11.4]} 58... Kf2
{[%clk 0:01:01.4]} 59. Be1+ {[%clk 0:01:12]} 59... Kg2 {[%clk 0:00:54.9]} 60. d7
{[%clk 0:01:11.9]} 60... b6 {[%clk 0:00:42.2]} 61. cxb6 {[%clk 0:01:11.5]} 1-0

[Event "*** Titled Tuesday Blitz"]
[Site "Chess.com"]
[Date "2020.01.07"]
[Round "5"]
[White "igorkovalenko"]
[Black "TheBigBoss04"]
[Result "1-0"]
[WhiteElo "2912"]
[BlackElo "2727"]
[TimeControl "180+2"]
[EndTime "14:09:45 PST"]
[Termination "igorkovalenko won by resignation"]

1. c4 {[%clk 0:03:01.9]} 1... Nf6 {[%clk 0:03:00.7]} 2. Nc3 {[%clk 0:03:02]}
2... e5 {[%clk 0:02:58.7]} 3. Nf3 {[%clk 0:03:03]} 3... Nc6 {[%clk 0:02:59.8]}
4. d3 {[%clk 0:03:03.1]} 4... Bb4 {[%clk 0:02:58.9]} 5. Bd2 {[%clk 0:03:03.5]}
5... d6 {[%clk 0:02:58.5]} 6. a3 {[%clk 0:03:02.6]} 6... Ba5 {[%clk 0:02:58.6]}
7. b4 {[%clk 0:03:01.2]} 7... Bb6 {[%clk 0:02:58.7]} 8. e3 {[%clk 0:03:02.8]}
8... O-O {[%clk 0:02:57.4]} 9. Be2 {[%clk 0:03:04.3]} 9... Re8 {[%clk
0:02:55.8]} 10. Qc2 {[%clk 0:03:05.2]} 10... Bf5 {[%clk 0:02:54.8]} 11. Ng5
{[%clk 0:03:00.9]} 11... h6 {[%clk 0:02:52.8]} 12. Nge4 {[%clk 0:03:01.9]} 12...
a5 {[%clk 0:02:47.6]} 13. Rb1 {[%clk 0:02:58.6]} 13... axb4 {[%clk 0:02:47.1]}
14. axb4 {[%clk 0:03:00.5]} 14... Nd7 {[%clk 0:02:37.5]} 15. O-O {[%clk
0:02:52.4]} 15... Bg6 {[%clk 0:02:37.1]} 16. Nd5 {[%clk 0:02:53]} 16... f5
{[%clk 0:02:36.2]} 17. Nec3 {[%clk 0:02:53.6]} 17... e4 {[%clk 0:02:29.6]} 18.
Nf4 {[%clk 0:02:47.4]} 18... Bh7 {[%clk 0:02:17.6]} 19. Bh5 {[%clk 0:02:46]}
19... exd3 {[%clk 0:02:07.7]} 20. Qb3 {[%clk 0:02:45.8]} 20... Kh8 {[%clk
0:02:01.3]} 21. Bxe8 {[%clk 0:02:38.9]} 21... Qxe8 {[%clk 0:02:03.2]} 22. Ncd5
{[%clk 0:02:38.7]} 22... Nce5 {[%clk 0:01:54.3]} 23. Ra1 {[%clk 0:02:36.2]}
23... Rc8 {[%clk 0:01:55]} 24. Rfc1 {[%clk 0:02:12.7]} 24... Bg8 {[%clk
0:01:33.4]} 25. Nxd3 {[%clk 0:02:07.2]} 25... Nxd3 {[%clk 0:01:07.7]} 26. Qxd3
{[%clk 0:02:09.1]} 26... Ne5 {[%clk 0:01:09.3]} 27. Qxf5 {[%clk 0:02:07.8]}
27... Bh7 {[%clk 0:01:03]} 28. Qh3 {[%clk 0:02:08.4]} 28... Nd3 {[%clk 0:01:03]}
29. Rf1 {[%clk 0:02:05.3]} 29... Nb2 {[%clk 0:00:56.4]} 30. Bc3 {[%clk
0:02:05.1]} 30... Nxc4 {[%clk 0:00:54]} 31. Qxh6 {[%clk 0:01:58.6]} 31... Qf7
{[%clk 0:00:54.9]} 32. Nxb6 {[%clk 0:01:52.7]} 32... Nxb6 {[%clk 0:00:52.9]} 33.
Qh3 {[%clk 0:01:51.8]} 33... Kg8 {[%clk 0:00:51.2]} 34. Bd4 {[%clk 0:01:52.5]}
34... Bf5 {[%clk 0:00:52.8]} 35. Qg3 {[%clk 0:01:53.2]} 35... Nc4 {[%clk
0:00:50.9]} 36. Ra7 {[%clk 0:01:49.6]} 36... c5 {[%clk 0:00:47.2]} 37. bxc5
{[%clk 0:01:49.9]} 37... dxc5 {[%clk 0:00:48.9]} 38. Bc3 {[%clk 0:01:48.8]}
38... Be4 {[%clk 0:00:45.7]} 39. h4 {[%clk 0:01:43]} 39... Bc6 {[%clk 0:00:39]}
40. Rd1 {[%clk 0:01:42.3]} 40... Re8 {[%clk 0:00:32.9]} 41. h5 {[%clk
0:01:42.9]} 41... Kh7 {[%clk 0:00:31.8]} 42. Qg5 {[%clk 0:01:26.2]} 42... Rf8
{[%clk 0:00:32.5]} 43. f3 {[%clk 0:01:19.5]} 43... Re8 {[%clk 0:00:27.1]} 44. e4
{[%clk 0:01:20.1]} 44... Rc8 {[%clk 0:00:12.5]} 45. Qg4 {[%clk 0:00:50]} 45...
Rc7 {[%clk 0:00:12.8]} 46. Rd8 {[%clk 0:00:49.9]} 46... Bd7 {[%clk 0:00:09.6]}
47. Raa8 {[%clk 0:00:49.9]} 47... Rc8 {[%clk 0:00:02.2]} 48. Raxc8 {[%clk
0:00:50.3]} 1-0

[Event "*** Titled Tuesday Blitz"]
[Site "Chess.com"]
[Date "2020.01.07"]
[Round "5"]
[White "IMRosen"]
[Black "Region_07"]
[Result "1/2-1/2"]
[WhiteElo "2572"]
[BlackElo "2381"]
[TimeControl "180+2"]
[EndTime "14:10:04 PST"]
[Termination "Game drawn by repetition"]

1. e4 {[%clk 0:03:01.9]} 1... Nc6 {[%clk 0:02:58.8]} 2. d4 {[%clk 0:02:55.8]}
2... d5 {[%clk 0:02:58.9]} 3. Nc3 {[%clk 0:02:56.6]} 3... Nf6 {[%clk 0:02:58.5]}
4. e5 {[%clk 0:02:57.2]} 4... Nd7 {[%clk 0:02:59.6]} 5. Nf3 {[%clk 0:02:57.4]}
5... Nb6 {[%clk 0:03:00.1]} 6. h3 {[%clk 0:02:57]} 6... Bf5 {[%clk 0:02:59.5]}
7. Nh4 {[%clk 0:02:54.6]} 7... e6 {[%clk 0:02:40]} 8. Nxf5 {[%clk 0:02:54.7]}
8... exf5 {[%clk 0:02:41.9]} 9. Be3 {[%clk 0:02:24.7]} 9... Qd7 {[%clk
0:02:40.7]} 10. Bd3 {[%clk 0:02:25]} 10... f4 {[%clk 0:02:28.3]} 11. Bxf4 {[%clk
0:02:23.5]} 11... Nxd4 {[%clk 0:02:29.4]} 12. O-O {[%clk 0:02:20.3]} 12... Be7
{[%clk 0:02:24]} 13. a4 {[%clk 0:02:12.5]} 13... Ne6 {[%clk 0:02:12.8]} 14. Bh2
{[%clk 0:02:10.6]} 14... O-O-O {[%clk 0:01:25.3]} 15. a5 {[%clk 0:02:06.9]}
15... Nc4 {[%clk 0:01:26.3]} 16. b3 {[%clk 0:02:04.5]} 16... Nb2 {[%clk
0:01:19.8]} 17. Qe2 {[%clk 0:01:52.3]} 17... Nxd3 {[%clk 0:01:12.8]} 18. Qxd3
{[%clk 0:01:54.2]} 18... a6 {[%clk 0:00:57.2]} 19. f4 {[%clk 0:01:37.7]} 19...
Nc5 {[%clk 0:00:56.3]} 20. Qd4 {[%clk 0:01:35.2]} 20... Ne6 {[%clk 0:00:57.9]}
21. Qd3 {[%clk 0:01:33.4]} 21... Nc5 {[%clk 0:00:57.7]} 22. Qf3 {[%clk 0:01:25]}
22... d4 {[%clk 0:00:57.6]} 23. Na4 {[%clk 0:01:14]} 23... Qf5 {[%clk
0:00:47.3]} 24. Rf2 {[%clk 0:01:07.7]} 24... d3 {[%clk 0:00:40.3]} 25. g4 {[%clk
0:01:05.1]} 25... Qd7 {[%clk 0:00:39.2]} 26. Kg2 {[%clk 0:00:57.3]} 26... Qb5
{[%clk 0:00:33.8]} 27. Nc3 {[%clk 0:00:27.2]} 27... Qd7 {[%clk 0:00:28]} 28. b4
{[%clk 0:00:22.9]} 28... Qd4 {[%clk 0:00:24.5]} 29. bxc5 {[%clk 0:00:16.3]}
29... Qxc3 {[%clk 0:00:25.4]} 30. Rb1 {[%clk 0:00:17.7]} 30... c6 {[%clk
0:00:19.7]} 31. Rb3 {[%clk 0:00:13.4]} 31... Qxc5 {[%clk 0:00:14.2]} 32. cxd3
{[%clk 0:00:13.7]} 32... Qd5 {[%clk 0:00:14.9]} 33. f5 {[%clk 0:00:12.3]} 33...
Bc5 {[%clk 0:00:13.5]} 34. Rc2 {[%clk 0:00:12.1]} 34... Qxf3+ {[%clk 0:00:12.9]}
35. Kxf3 {[%clk 0:00:14]} 35... Ba7 {[%clk 0:00:12.2]} 36. e6 {[%clk 0:00:11.7]}
36... fxe6 {[%clk 0:00:11.8]} 37. fxe6 {[%clk 0:00:13.1]} 37... Rhe8 {[%clk
0:00:12.7]} 38. Re2 {[%clk 0:00:10.6]} 38... Bb8 {[%clk 0:00:10.5]} 39. Bxb8
{[%clk 0:00:09.2]} 39... Kxb8 {[%clk 0:00:12.4]} 40. Kf4 {[%clk 0:00:05.6]}
40... Rd5 {[%clk 0:00:11.3]} 41. Re5 {[%clk 0:00:05.1]} 41... Rd6 {[%clk
0:00:04.2]} 42. Kf5 {[%clk 0:00:06]} 42... Kc7 {[%clk 0:00:05.5]} 43. h4 {[%clk
0:00:05.3]} 43... Rf8+ {[%clk 0:00:05.9]} 44. Ke4 {[%clk 0:00:06.2]} 44... Re8
{[%clk 0:00:04.6]} 45. Kf5 {[%clk 0:00:07.8]} 45... Rf8+ {[%clk 0:00:05.8]} 46.
Kg5 {[%clk 0:00:09.4]} 46... Re8 {[%clk 0:00:05.6]} 47. Kf5 {[%clk 0:00:06.9]}
1/2-1/2

[Event "*** Titled Tuesday Blitz"]
[Site "Chess.com"]
[Date "2020.01.07"]
[Round "5"]
[White "riconaipe"]
[Black "ChessBitl"]
[Result "1-0"]
[WhiteElo "2579"]
[BlackElo "2365"]
[TimeControl "180+2"]
[EndTime "14:10:05 PST"]
[Termination "riconaipe won by checkmate"]

1. d4 {[%clk 0:02:54.4]} 1... d5 {[%clk 0:03:00.2]} 2. c4 {[%clk 0:02:55.1]}
2... dxc4 {[%clk 0:03:01.4]} 3. e4 {[%clk 0:02:55.3]} 3... e5 {[%clk 0:03:02.4]}
4. Nf3 {[%clk 0:02:56.1]} 4... exd4 {[%clk 0:03:01.8]} 5. Bxc4 {[%clk
0:02:57.2]} 5... Nc6 {[%clk 0:03:03.1]} 6. O-O {[%clk 0:02:57.7]} 6... Be6
{[%clk 0:03:04.5]} 7. Bxe6 {[%clk 0:02:57.4]} 7... fxe6 {[%clk 0:03:05.1]} 8.
Qb3 {[%clk 0:02:59]} 8... Qd7 {[%clk 0:03:06.3]} 9. Qxb7 {[%clk 0:02:56.8]} 9...
Rb8 {[%clk 0:03:07.7]} 10. Qa6 {[%clk 0:02:57.7]} 10... Nf6 {[%clk 0:03:05.5]}
11. Nbd2 {[%clk 0:02:53.4]} 11... Bd6 {[%clk 0:03:04.7]} 12. Nc4 {[%clk
0:02:45]} 12... e5 {[%clk 0:03:01.3]} 13. Bg5 {[%clk 0:02:40.4]} 13... O-O
{[%clk 0:02:59.2]} 14. Bxf6 {[%clk 0:02:20.2]} 14... Rxf6 {[%clk 0:02:50.7]} 15.
Nxd6 {[%clk 0:02:19.6]} 15... cxd6 {[%clk 0:02:49.9]} 16. Rac1 {[%clk
0:02:13.8]} 16... Nb4 {[%clk 0:02:48]} 17. Qc4+ {[%clk 0:02:08.7]} 17... Qf7
{[%clk 0:02:46.9]} 18. a3 {[%clk 0:01:19.8]} 18... Qxc4 {[%clk 0:02:43.2]} 19.
Rxc4 {[%clk 0:01:21.7]} 19... Nd3 {[%clk 0:02:44.5]} 20. b4 {[%clk 0:01:22.9]}
20... h6 {[%clk 0:02:34.1]} 21. Nd2 {[%clk 0:01:20.9]} 21... Ra8 {[%clk
0:02:13.9]} 22. f3 {[%clk 0:01:21]} 22... a5 {[%clk 0:02:11.6]} 23. b5 {[%clk
0:01:22]} 23... a4 {[%clk 0:02:07.2]} 24. Rb1 {[%clk 0:01:21.3]} 24... Nc5
{[%clk 0:02:06.6]} 25. b6 {[%clk 0:01:15.1]} 25... Rf7 {[%clk 0:02:07]} 26. Rcb4
{[%clk 0:01:13.3]} 26... Rb8 {[%clk 0:02:04.2]} 27. Nc4 {[%clk 0:01:14.1]} 27...
Rd7 {[%clk 0:01:59.6]} 28. Rb5 {[%clk 0:01:10.1]} 28... Kf7 {[%clk 0:01:46.6]}
29. Nxe5+ {[%clk 0:00:58.9]} 29... dxe5 {[%clk 0:01:47]} 30. Rxc5 {[%clk
0:01:00.4]} 30... Ke6 {[%clk 0:01:39.9]} 31. Kf2 {[%clk 0:00:59.1]} 31... Rd6
{[%clk 0:01:31.8]} 32. b7 {[%clk 0:00:59.3]} 32... Rd7 {[%clk 0:01:29.5]} 33.
Rcb5 {[%clk 0:00:58.5]} 33... Rc7 {[%clk 0:01:16.5]} 34. R1b2 {[%clk 0:00:58.9]}
34... Kd6 {[%clk 0:01:14]} 35. Ke2 {[%clk 0:00:46.1]} 35... Rc3 {[%clk
0:01:14.7]} 36. Rd5+ {[%clk 0:00:39.4]} 36... Kc7 {[%clk 0:01:11.8]} 37. Rxe5
{[%clk 0:00:39.4]} 37... Rxa3 {[%clk 0:01:08]} 38. Rc5+ {[%clk 0:00:39.7]} 38...
Kd7 {[%clk 0:01:07]} 39. Rd5+ {[%clk 0:00:40.6]} 39... Ke6 {[%clk 0:01:07.3]}
40. Rxd4 {[%clk 0:00:39.3]} 40... Rb3 {[%clk 0:01:07.3]} 41. Rxb3 {[%clk
0:00:39.7]} 41... axb3 {[%clk 0:01:08.5]} 42. Rb4 {[%clk 0:00:41.1]} 42... Kd6
{[%clk 0:01:09.6]} 43. Rxb3 {[%clk 0:00:41.7]} 43... Kc7 {[%clk 0:01:10.8]} 44.
Ke3 {[%clk 0:00:42.6]} 44... g5 {[%clk 0:01:10.5]} 45. e5 {[%clk 0:00:42.8]}
45... Kd7 {[%clk 0:01:07.3]} 46. Ke4 {[%clk 0:00:42.5]} 46... Kc7 {[%clk
0:01:04.2]} 47. g3 {[%clk 0:00:42.9]} 47... Kd7 {[%clk 0:01:00.9]} 48. f4 {[%clk
0:00:44]} 48... Kc7 {[%clk 0:00:54.5]} 49. f5 {[%clk 0:00:44.6]} 49... h5 {[%clk
0:00:54.3]} 50. f6 {[%clk 0:00:44.5]} 50... Kd7 {[%clk 0:00:55]} 51. Kf5 {[%clk
0:00:45.8]} 51... Kc7 {[%clk 0:00:39.6]} 52. f7 {[%clk 0:00:41.3]} 52... Kd7
{[%clk 0:00:38.2]} 53. Kf6 {[%clk 0:00:40.6]} 53... h4 {[%clk 0:00:39.6]} 54.
gxh4 {[%clk 0:00:38.7]} 54... gxh4 {[%clk 0:00:39.6]} 55. e6+ {[%clk 0:00:40]}
55... Kd6 {[%clk 0:00:41]} 56. e7 {[%clk 0:00:41.1]} 56... Kd7 {[%clk
0:00:42.2]} 57. e8=Q+ {[%clk 0:00:39.3]} 57... Kc7 {[%clk 0:00:41.7]} 58. Qxb8+
{[%clk 0:00:37.4]} 58... Kxb8 {[%clk 0:00:42.8]} 59. f8=Q+ {[%clk 0:00:38.6]}
59... Kc7 {[%clk 0:00:44.2]} 60. b8=Q+ {[%clk 0:00:38.3]} 60... Kc6 {[%clk
0:00:45.4]} 61. Qfd6# {[%clk 0:00:39.3]} 1-0